[Event "Late-Titled-Tuesday-Blitz-September-26-2023"]
[Site "Chess.com"]
[Date "2023.09.26"]
[Round "9"]
[White "Balla_Tamas"]
[Black "Djager97"]
[Result "0-1"]
[WhiteElo "2432"]
[BlackElo "2589"]
[TimeControl "180+1"]
[EndTime "15:41:51 PDT"]
[Termination "Djager97 won by checkmate"]

1. e4 {[%clk 0:03:00.9]} 1... e5 {[%clk 0:02:58.4]} 2. Nf3 {[%clk 0:02:54.8]}
2... Nc6 {[%clk 0:02:58.4]} 3. d4 {[%clk 0:02:55]} 3... exd4 {[%clk 0:02:59.3]}
4. Nxd4 {[%clk 0:02:55.5]} 4... Nf6 {[%clk 0:02:59.8]} 5. Nxc6 {[%clk
0:02:55.4]} 5... bxc6 {[%clk 0:02:59.2]} 6. e5 {[%clk 0:02:56.1]} 6... Qe7
{[%clk 0:02:59.8]} 7. Qe2 {[%clk 0:02:56.7]} 7... Nd5 {[%clk 0:03:00.3]} 8. h4
{[%clk 0:02:55.6]} 8... f6 {[%clk 0:02:56.2]} 9. c4 {[%clk 0:02:54.8]} 9... Ba6
{[%clk 0:02:52.6]} 10. Rh3 {[%clk 0:02:51.5]} 10... fxe5 {[%clk 0:02:35.2]} 11.
Ra3 {[%clk 0:01:53.4]} 11... Nb4 {[%clk 0:02:34.5]} 12. Bg5 {[%clk 0:01:42]}
12... Qe6 {[%clk 0:02:31.5]} 13. Nc3 {[%clk 0:01:40.8]} 13... Bc5 {[%clk
0:02:24.6]} 14. O-O-O {[%clk 0:01:39.2]} 14... O-O {[%clk 0:02:22.4]} 15. Ne4
{[%clk 0:01:30.4]} 15... Bd4 {[%clk 0:02:20.7]} 16. Bd2 {[%clk 0:01:22]} 16...
c5 {[%clk 0:02:19.2]} 17. Bxb4 {[%clk 0:01:20.6]} 17... cxb4 {[%clk 0:02:20.1]}
18. Rg3 {[%clk 0:01:14.8]} 18... Bb7 {[%clk 0:01:16.1]} 19. Ng5 {[%clk
0:01:09.1]} 19... Qf5 {[%clk 0:00:54.4]} 20. Nf3 {[%clk 0:00:39.3]} 20... c5
{[%clk 0:00:41.6]} 21. Qd2 {[%clk 0:00:32.7]} 21... Qf4 {[%clk 0:00:34.9]} 22.
Nxd4 {[%clk 0:00:28.9]} 22... exd4 {[%clk 0:00:31.8]} 23. Bd3 {[%clk 0:00:25]}
23... Qxf2 {[%clk 0:00:27.3]} 24. Qg5 {[%clk 0:00:06.1]} 24... Qf4+ {[%clk
0:00:27]} 25. Kb1 {[%clk 0:00:06]} 25... Qxg5 {[%clk 0:00:26.9]} 26. Rxg5 {[%clk
0:00:06.9]} 26... d6 {[%clk 0:00:26.7]} 27. Re1 {[%clk 0:00:05.7]} 27... Rae8
{[%clk 0:00:26.8]} 28. Rxe8 {[%clk 0:00:05]} 28... Rxe8 {[%clk 0:00:27.7]} 29.
Kc2 {[%clk 0:00:05.6]} 29... Re5 {[%clk 0:00:24.5]} 30. Rg4 {[%clk 0:00:05.3]}
30... Bc8 {[%clk 0:00:16.2]} 31. Rg3 {[%clk 0:00:04.8]} 31... Bf5 {[%clk
0:00:15.6]} 32. Kd2 {[%clk 0:00:04.7]} 32... Bxd3 {[%clk 0:00:15.3]} 33. Kxd3
{[%clk 0:00:05.6]} 33... Kf7 {[%clk 0:00:15.7]} 34. Rf3+ {[%clk 0:00:06]} 34...
Ke7 {[%clk 0:00:15.3]} 35. g4 {[%clk 0:00:06.7]} 35... a5 {[%clk 0:00:12.5]} 36.
b3 {[%clk 0:00:07]} 36... h6 {[%clk 0:00:09.4]} 37. Kc2 {[%clk 0:00:04.5]} 37...
Re4 {[%clk 0:00:08.6]} 38. g5 {[%clk 0:00:03.5]} 38... hxg5 {[%clk 0:00:08.8]}
39. hxg5 {[%clk 0:00:03.8]} 39... Rg4 {[%clk 0:00:09.3]} 40. Rf5 {[%clk
0:00:04.4]} 40... g6 {[%clk 0:00:08.2]} 41. Rd5 {[%clk 0:00:04.4]} 41... Ke6
{[%clk 0:00:06.7]} 42. Kd3 {[%clk 0:00:04.9]} 42... Rg3+ {[%clk 0:00:06.1]} 43.
Kc2 {[%clk 0:00:05.4]} 43... Re3 {[%clk 0:00:06.2]} 44. Kb1 {[%clk 0:00:05.3]}
44... Re5 {[%clk 0:00:06.4]} 45. Kc2 {[%clk 0:00:02.7]} 45... Rxd5 {[%clk
0:00:06.5]} 46. cxd5+ {[%clk 0:00:03.6]} 46... Kxd5 {[%clk 0:00:07.4]} 47. Kd3
{[%clk 0:00:04.5]} 47... Ke5 {[%clk 0:00:07.3]} 48. Kc4 {[%clk 0:00:05.2]} 48...
Ke4 {[%clk 0:00:07.7]} 49. Kb5 {[%clk 0:00:05.7]} 49... d3 {[%clk 0:00:08.1]}
50. Kxa5 {[%clk 0:00:06.6]} 50... d2 {[%clk 0:00:08.6]} 51. a3 {[%clk
0:00:07.2]} 51... d1=Q {[%clk 0:00:09]} 52. axb4 {[%clk 0:00:07.7]} 52... cxb4
{[%clk 0:00:09.9]} 53. Kxb4 {[%clk 0:00:08.3]} 53... Qc2 {[%clk 0:00:10.3]} 54.
Kb5 {[%clk 0:00:08.6]} 54... Qxb3+ {[%clk 0:00:10]} 55. Kc6 {[%clk 0:00:09.5]}
55... d5 {[%clk 0:00:10.1]} 56. Kd6 {[%clk 0:00:10]} 56... d4 {[%clk 0:00:10.6]}
57. Ke7 {[%clk 0:00:10.8]} 57... Qb6 {[%clk 0:00:10.6]} 58. Kf8 {[%clk
0:00:11.6]} 58... Kf5 {[%clk 0:00:10.6]} 59. Kg7 {[%clk 0:00:12.5]} 59... Qc7+
{[%clk 0:00:10.3]} 60. Kh8 {[%clk 0:00:13.2]} 60... Kxg5 {[%clk 0:00:08.5]} 61.
Kg8 {[%clk 0:00:12.7]} 61... Kf6 {[%clk 0:00:08.8]} 62. Kf8 {[%clk 0:00:13.5]}
62... Qd8# {[%clk 0:00:08.8]} 0-1

[Event "Late-Titled-Tuesday-Blitz-September-26-2023"]
[Site "Chess.com"]
[Date "2023.09.26"]
[Round "9"]
[White "Lion_DL"]
[Black "The_Princess_Moon"]
[Result "1/2-1/2"]
[WhiteElo "2489"]
[BlackElo "2297"]
[TimeControl "180+1"]
[EndTime "15:41:56 PDT"]
[Termination "Game drawn - insufficient material"]

1. e4 {[%clk 0:03:00.9]} 1... c5 {[%clk 0:03:00.6]} 2. b3 {[%clk 0:02:59.7]}
2... d6 {[%clk 0:02:59.7]} 3. Bb2 {[%clk 0:02:59.9]} 3... e5 {[%clk 0:03:00.4]}
4. Nc3 {[%clk 0:02:58.5]} 4... Nc6 {[%clk 0:03:00.7]} 5. Bb5 {[%clk 0:02:58.1]}
5... Bd7 {[%clk 0:03:00.5]} 6. Bxc6 {[%clk 0:02:57.4]} 6... Bxc6 {[%clk
0:03:01.4]} 7. Nge2 {[%clk 0:02:56.7]} 7... g6 {[%clk 0:03:00.7]} 8. O-O {[%clk
0:02:56.6]} 8... Bg7 {[%clk 0:03:00.4]} 9. f4 {[%clk 0:02:57.3]} 9... exf4
{[%clk 0:02:59.7]} 10. Nxf4 {[%clk 0:02:54.9]} 10... Ne7 {[%clk 0:02:55.1]} 11.
Rb1 {[%clk 0:02:44.1]} 11... O-O {[%clk 0:02:48.2]} 12. d3 {[%clk 0:02:44.6]}
12... d5 {[%clk 0:02:34.6]} 13. Ncxd5 {[%clk 0:02:36.4]} 13... Nxd5 {[%clk
0:02:29.9]} 14. Bxg7 {[%clk 0:02:34.1]} 14... Kxg7 {[%clk 0:02:23.6]} 15. exd5
{[%clk 0:02:32.6]} 15... Bxd5 {[%clk 0:02:24.5]} 16. Qg4 {[%clk 0:02:25.5]}
16... Bc6 {[%clk 0:02:10.2]} 17. Kh1 {[%clk 0:02:21.9]} 17... Kh8 {[%clk
0:01:46.6]} 18. Rbe1 {[%clk 0:02:12.8]} 18... Qd4 {[%clk 0:01:39.1]} 19. Qg5
{[%clk 0:02:10.6]} 19... Rae8 {[%clk 0:01:33.9]} 20. Qh6 {[%clk 0:01:48.9]}
20... Qg7 {[%clk 0:01:28.1]} 21. Qxg7+ {[%clk 0:01:44.8]} 21... Kxg7 {[%clk
0:01:29]} 22. Kg1 {[%clk 0:01:45.1]} 22... Rxe1 {[%clk 0:01:27.9]} 23. Rxe1
{[%clk 0:01:44.6]} 23... g5 {[%clk 0:01:20.7]} 24. Nh3 {[%clk 0:01:27.8]} 24...
h6 {[%clk 0:01:15.4]} 25. Kf2 {[%clk 0:01:16.4]} 25... Re8 {[%clk 0:01:13.1]}
26. Rxe8 {[%clk 0:01:12.2]} 26... Bxe8 {[%clk 0:01:14]} 27. Ke3 {[%clk
0:01:12.2]} 27... Bc6 {[%clk 0:01:11.2]} 28. g3 {[%clk 0:01:11.5]} 28... f5
{[%clk 0:01:09.3]} 29. d4 {[%clk 0:01:08.8]} 29... cxd4+ {[%clk 0:01:06.5]} 30.
Kxd4 {[%clk 0:01:09.7]} 30... Kf6 {[%clk 0:01:07.4]} 31. c4 {[%clk 0:01:07.5]}
31... Bg2 {[%clk 0:01:01]} 32. Nf2 {[%clk 0:01:08]} 32... h5 {[%clk 0:00:57.7]}
33. b4 {[%clk 0:01:04.9]} 33... h4 {[%clk 0:00:53.3]} 34. gxh4 {[%clk
0:00:57.1]} 34... gxh4 {[%clk 0:00:54.2]} 35. Ke3 {[%clk 0:00:56.8]} 35... Kg5
{[%clk 0:00:49.7]} 36. Nd3 {[%clk 0:00:55.3]} 36... Bf1 {[%clk 0:00:46.6]} 37.
Ne5 {[%clk 0:00:53.1]} 37... f4+ {[%clk 0:00:42.4]} 38. Kf2 {[%clk 0:00:47.2]}
38... Bh3 {[%clk 0:00:26.6]} 39. Nf3+ {[%clk 0:00:44.5]} 39... Kh5 {[%clk
0:00:26.5]} 40. c5 {[%clk 0:00:42.3]} 40... Bd7 {[%clk 0:00:25.4]} 41. a3 {[%clk
0:00:42.3]} 41... Bb5 {[%clk 0:00:23.8]} 42. Nd4 {[%clk 0:00:39.9]} 42... Ba4
{[%clk 0:00:23.6]} 43. Kf3 {[%clk 0:00:39.8]} 43... Kg5 {[%clk 0:00:19.2]} 44.
Ne6+ {[%clk 0:00:39.7]} 44... Kf5 {[%clk 0:00:17.9]} 45. Nxf4 {[%clk 0:00:40.2]}
45... Bc6+ {[%clk 0:00:17.1]} 46. Ke3 {[%clk 0:00:39.8]} 46... Kg4 {[%clk
0:00:17.4]} 47. Ng6 {[%clk 0:00:34]} 47... Kh3 {[%clk 0:00:16.2]} 48. Kf2 {[%clk
0:00:29.7]} 48... Be8 {[%clk 0:00:15.9]} 49. Ne7 {[%clk 0:00:15]} 49... Kxh2
{[%clk 0:00:15.7]} 50. Nc8 {[%clk 0:00:15.6]} 50... a6 {[%clk 0:00:15.3]} 51.
Nd6 {[%clk 0:00:15.7]} 51... Bc6 {[%clk 0:00:15.7]} 52. Nf5 {[%clk 0:00:15]}
52... Kh3 {[%clk 0:00:15.7]} 53. Nd4 {[%clk 0:00:12.2]} 53... Bd7 {[%clk
0:00:15.7]} 54. Ne2 {[%clk 0:00:10.8]} 54... Kg4 {[%clk 0:00:15.7]} 55. Kg2
{[%clk 0:00:10.3]} 55... Bc6+ {[%clk 0:00:15.7]} 56. Kh2 {[%clk 0:00:10.8]}
56... Kf3 {[%clk 0:00:15.7]} 57. Nc3 {[%clk 0:00:11.4]} 57... Ke3 {[%clk
0:00:15.2]} 58. a4 {[%clk 0:00:12.1]} 58... Kd3 {[%clk 0:00:15.1]} 59. b5 {[%clk
0:00:13]} 59... axb5 {[%clk 0:00:14.3]} 60. axb5 {[%clk 0:00:13.9]} 60... Bf3
{[%clk 0:00:14.4]} 61. c6 {[%clk 0:00:13]} 61... bxc6 {[%clk 0:00:14.4]} 62.
bxc6 {[%clk 0:00:13.2]} 62... Bxc6 {[%clk 0:00:15.3]} 63. Kh3 {[%clk 0:00:13.2]}
63... Kxc3 {[%clk 0:00:15.5]} 64. Kxh4 {[%clk 0:00:14.1]} 1/2-1/2

[Event "Late-Titled-Tuesday-Blitz-September-26-2023"]
[Site "Chess.com"]
[Date "2023.09.26"]
[Round "9"]
[White "nihalsarin"]
[Black "Druid24"]
[Result "1-0"]
[WhiteElo "3069"]
[BlackElo "2707"]
[TimeControl "180+1"]
[EndTime "15:41:58 PDT"]
[Termination "nihalsarin won on time"]

1. d4 {[%clk 0:02:56]} 1... Nf6 {[%clk 0:02:59.1]} 2. Bg5 {[%clk 0:02:51.3]}
2... e6 {[%clk 0:02:57]} 3. g4 {[%clk 0:02:37.7]} 3... h6 {[%clk 0:02:55.3]} 4.
Bxf6 {[%clk 0:02:37.7]} 4... Qxf6 {[%clk 0:02:56]} 5. Bg2 {[%clk 0:02:37.2]}
5... d5 {[%clk 0:02:55.8]} 6. c4 {[%clk 0:02:33]} 6... dxc4 {[%clk 0:02:55.1]}
7. Qa4+ {[%clk 0:02:30]} 7... Nd7 {[%clk 0:02:54.3]} 8. Qxc4 {[%clk 0:02:29.7]}
8... g6 {[%clk 0:02:54.2]} 9. Nc3 {[%clk 0:02:27.9]} 9... Bg7 {[%clk 0:02:52.9]}
10. e3 {[%clk 0:02:22.9]} 10... O-O {[%clk 0:02:52.4]} 11. Nge2 {[%clk
0:02:23.7]} 11... c6 {[%clk 0:02:47.6]} 12. h4 {[%clk 0:02:21.6]} 12... e5
{[%clk 0:02:47.3]} 13. d5 {[%clk 0:02:18.7]} 13... Nb6 {[%clk 0:02:45.7]} 14.
Qb4 {[%clk 0:02:14.1]} 14... cxd5 {[%clk 0:02:45.4]} 15. Nxd5 {[%clk 0:02:13.7]}
15... Nxd5 {[%clk 0:02:44.5]} 16. Bxd5 {[%clk 0:02:14.4]} 16... a5 {[%clk
0:02:38.3]} 17. Qe4 {[%clk 0:02:13.8]} 17... Be6 {[%clk 0:02:30]} 18. Nc3 {[%clk
0:02:06.2]} 18... Rad8 {[%clk 0:02:21.1]} 19. Rd1 {[%clk 0:01:42.5]} 19... b6
{[%clk 0:02:12.9]} 20. g5 {[%clk 0:01:42.5]} 20... hxg5 {[%clk 0:02:08.3]} 21.
hxg5 {[%clk 0:01:43.4]} 21... Qxg5 {[%clk 0:02:08.8]} 22. Bxe6 {[%clk
0:01:40.6]} 22... fxe6 {[%clk 0:02:09.5]} 23. Rxd8 {[%clk 0:01:32.5]} 23... Rxd8
{[%clk 0:02:10]} 24. Ke2 {[%clk 0:01:30.2]} 24... Qf5 {[%clk 0:02:05.7]} 25. Rg1
{[%clk 0:01:26.4]} 25... Kf7 {[%clk 0:01:35.8]} 26. Rg3 {[%clk 0:01:11.1]} 26...
Qxe4 {[%clk 0:01:22.1]} 27. Nxe4 {[%clk 0:01:12]} 27... a4 {[%clk 0:01:21.5]}
28. Rg1 {[%clk 0:01:08.5]} 28... Rd7 {[%clk 0:01:09.5]} 29. Rc1 {[%clk
0:01:04.7]} 29... Ke7 {[%clk 0:00:51.4]} 30. Rc6 {[%clk 0:00:52.4]} 30... b5
{[%clk 0:00:48.4]} 31. Rb6 {[%clk 0:00:47.2]} 31... Rd5 {[%clk 0:00:47.5]} 32.
Rb7+ {[%clk 0:00:47.1]} 32... Rd7 {[%clk 0:00:46.5]} 33. Rxb5 {[%clk 0:00:46.5]}
33... Ra7 {[%clk 0:00:37.2]} 34. a3 {[%clk 0:00:46.3]} 34... Kd7 {[%clk
0:00:37]} 35. Rb6 {[%clk 0:00:45.7]} 35... Bf8 {[%clk 0:00:36.4]} 36. Rb5 {[%clk
0:00:41.4]} 36... Bd6 {[%clk 0:00:34.6]} 37. Kd3 {[%clk 0:00:40.1]} 37... Kc6
{[%clk 0:00:25.4]} 38. Kc4 {[%clk 0:00:40.6]} 38... Rh7 {[%clk 0:00:15.4]} 39.
Ra5 {[%clk 0:00:38.4]} 39... Kb6 {[%clk 0:00:13.9]} 40. Rxa4 {[%clk 0:00:38.4]}
40... Rh4 {[%clk 0:00:13.5]} 41. Kd3 {[%clk 0:00:37.7]} 41... Be7 {[%clk
0:00:12.2]} 42. Nc3 {[%clk 0:00:33.8]} 42... Rh2 {[%clk 0:00:11.7]} 43. Ke2
{[%clk 0:00:34]} 43... Bh4 {[%clk 0:00:10.2]} 44. Ne4 {[%clk 0:00:33]} 44... Be7
{[%clk 0:00:09.8]} 45. Rb4+ {[%clk 0:00:33]} 45... Bxb4 {[%clk 0:00:10]} 46.
axb4 {[%clk 0:00:33.7]} 46... Kb5 {[%clk 0:00:10.5]} 47. Ng5 {[%clk 0:00:33.8]}
47... Kxb4 {[%clk 0:00:09]} 48. Nxe6 {[%clk 0:00:31.1]} 48... Kc4 {[%clk
0:00:07.9]} 49. Ng5 {[%clk 0:00:30.9]} 49... Kd5 {[%clk 0:00:07]} 50. Kf3 {[%clk
0:00:26.9]} 50... Rh1 {[%clk 0:00:06.6]} 51. Ne4 {[%clk 0:00:25.2]} 51... Rh3+
{[%clk 0:00:03.4]} 52. Kg4 {[%clk 0:00:24.9]} 52... Rh8 {[%clk 0:00:04.3]} 53.
Nd2 {[%clk 0:00:20.8]} 53... Rb8 {[%clk 0:00:02.8]} 54. b3 {[%clk 0:00:20.9]}
54... Rc8 {[%clk 0:00:02.6]} 55. Nc4 {[%clk 0:00:19]} 55... Rf8 {[%clk
0:00:02.5]} 56. f3 {[%clk 0:00:18.8]} 56... Rb8 {[%clk 0:00:01.9]} 57. Nd2
{[%clk 0:00:18.6]} 57... Ra8 {[%clk 0:00:02.5]} 58. Ne4 {[%clk 0:00:15.7]} 58...
Ra2 {[%clk 0:00:03.4]} 59. Nc3+ {[%clk 0:00:15.8]} 1-0

[Event "Late-Titled-Tuesday-Blitz-September-26-2023"]
[Site "Chess.com"]
[Date "2023.09.26"]
[Round "9"]
[White "DefiantChair"]
[Black "arminmusovic"]
[Result "0-1"]
[WhiteElo "2534"]
[BlackElo "2517"]
[TimeControl "180+1"]
[EndTime "15:41:59 PDT"]
[Termination "arminmusovic won by checkmate"]

1. e4 {[%clk 0:02:52.5]} 1... c6 {[%clk 0:03:00]} 2. d4 {[%clk 0:02:52.3]} 2...
d5 {[%clk 0:03:00.7]} 3. e5 {[%clk 0:02:52.8]} 3... c5 {[%clk 0:03:01]} 4. dxc5
{[%clk 0:02:52.2]} 4... Nc6 {[%clk 0:03:00.3]} 5. Nf3 {[%clk 0:02:49.9]} 5...
Bg4 {[%clk 0:03:00.5]} 6. c3 {[%clk 0:02:48.7]} 6... e6 {[%clk 0:02:59.4]} 7.
Be3 {[%clk 0:02:43.7]} 7... Nge7 {[%clk 0:02:56]} 8. Be2 {[%clk 0:02:22.8]} 8...
Bxf3 {[%clk 0:02:49.6]} 9. Bxf3 {[%clk 0:02:23.7]} 9... Nxe5 {[%clk 0:02:49]}
10. Be2 {[%clk 0:02:12.2]} 10... Nf5 {[%clk 0:02:43.6]} 11. Bd4 {[%clk
0:02:10.1]} 11... Nxd4 {[%clk 0:02:41.5]} 12. cxd4 {[%clk 0:02:11]} 12... Nc6
{[%clk 0:02:41.4]} 13. O-O {[%clk 0:02:10.3]} 13... Be7 {[%clk 0:02:40.9]} 14.
Bb5 {[%clk 0:02:09.9]} 14... O-O {[%clk 0:02:39.9]} 15. Bxc6 {[%clk 0:02:10.3]}
15... bxc6 {[%clk 0:02:40.8]} 16. Re1 {[%clk 0:01:58.9]} 16... Rb8 {[%clk
0:02:30.8]} 17. Qd2 {[%clk 0:01:57.6]} 17... Re8 {[%clk 0:02:08.2]} 18. Nc3
{[%clk 0:01:55]} 18... Bf6 {[%clk 0:01:51.3]} 19. b3 {[%clk 0:01:53.7]} 19... e5
{[%clk 0:01:48.3]} 20. dxe5 {[%clk 0:01:53.9]} 20... Bxe5 {[%clk 0:01:48.5]} 21.
Rac1 {[%clk 0:01:48.4]} 21... Qf6 {[%clk 0:01:45.2]} 22. g3 {[%clk 0:01:48.1]}
22... h5 {[%clk 0:01:41.4]} 23. Nd1 {[%clk 0:01:38.1]} 23... h4 {[%clk
0:01:36.2]} 24. Ne3 {[%clk 0:01:37.7]} 24... Qf3 {[%clk 0:01:28.2]} 25. Qd1
{[%clk 0:01:30.2]} 25... Qxd1 {[%clk 0:01:23.5]} 26. Rexd1 {[%clk 0:01:27.4]}
26... Rb4 {[%clk 0:01:15.6]} 27. Kg2 {[%clk 0:01:18.3]} 27... Kf8 {[%clk
0:01:15.3]} 28. Nf5 {[%clk 0:00:58.4]} 28... g5 {[%clk 0:01:08.7]} 29. Rd3
{[%clk 0:00:43.1]} 29... f6 {[%clk 0:00:58.3]} 30. Rc2 {[%clk 0:00:39.9]} 30...
Kf7 {[%clk 0:00:56.1]} 31. Re3 {[%clk 0:00:36.3]} 31... Rh8 {[%clk 0:00:53.9]}
32. a3 {[%clk 0:00:30.3]} 32... h3+ {[%clk 0:00:50.2]} 33. Kf1 {[%clk
0:00:28.1]} 33... Re4 {[%clk 0:00:41.7]} 34. Rxe4 {[%clk 0:00:23.6]} 34... dxe4
{[%clk 0:00:42.6]} 35. Ke2 {[%clk 0:00:18.9]} 35... Ke6 {[%clk 0:00:39.5]} 36.
Ne3 {[%clk 0:00:18.2]} 36... f5 {[%clk 0:00:38.2]} 37. Rd2 {[%clk 0:00:16.4]}
37... f4 {[%clk 0:00:34.4]} 38. Nc4 {[%clk 0:00:16.4]} 38... e3 {[%clk 0:00:32]}
39. Rd1 {[%clk 0:00:14.8]} 39... exf2 {[%clk 0:00:30.7]} 40. Kxf2 {[%clk
0:00:14.1]} 40... fxg3+ {[%clk 0:00:30.7]} 41. hxg3 {[%clk 0:00:14.6]} 41... Bc7
{[%clk 0:00:30.9]} 42. Nd6 {[%clk 0:00:11.7]} 42... h2 {[%clk 0:00:29.1]} 43.
Kg2 {[%clk 0:00:11.5]} 43... h1=Q+ {[%clk 0:00:19.4]} 44. Rxh1 {[%clk
0:00:11.2]} 44... Rxh1 {[%clk 0:00:20.3]} 45. Kxh1 {[%clk 0:00:11.6]} 45... Bxd6
{[%clk 0:00:21.2]} 46. cxd6 {[%clk 0:00:11.9]} 46... Kxd6 {[%clk 0:00:22.1]} 47.
Kg2 {[%clk 0:00:12.5]} 47... g4 {[%clk 0:00:22.2]} 48. Kf2 {[%clk 0:00:12.9]}
48... Ke5 {[%clk 0:00:21]} 49. Ke3 {[%clk 0:00:13.1]} 49... c5 {[%clk
0:00:21.7]} 50. Kd3 {[%clk 0:00:11.8]} 50... Kd5 {[%clk 0:00:21]} 51. b4 {[%clk
0:00:10.5]} 51... a6 {[%clk 0:00:17.8]} 52. Ke3 {[%clk 0:00:09.1]} 52... cxb4
{[%clk 0:00:09.3]} 53. axb4 {[%clk 0:00:09.1]} 53... Kc4 {[%clk 0:00:09.2]} 54.
Kf4 {[%clk 0:00:10]} 54... Kxb4 {[%clk 0:00:09.7]} 55. Kxg4 {[%clk 0:00:10.9]}
55... a5 {[%clk 0:00:10.6]} 56. Kh5 {[%clk 0:00:11.8]} 56... a4 {[%clk
0:00:11.5]} 57. g4 {[%clk 0:00:12.7]} 57... a3 {[%clk 0:00:12.4]} 58. g5 {[%clk
0:00:13.6]} 58... a2 {[%clk 0:00:13.3]} 59. g6 {[%clk 0:00:14.4]} 59... a1=Q
{[%clk 0:00:14.2]} 60. Kh6 {[%clk 0:00:14.8]} 60... Qh8+ {[%clk 0:00:14.3]} 61.
Kg5 {[%clk 0:00:15.5]} 61... Qg8 {[%clk 0:00:15.1]} 62. Kf5 {[%clk 0:00:16.4]}
62... Kc5 {[%clk 0:00:15.8]} 63. Kf6 {[%clk 0:00:17.3]} 63... Kc6 {[%clk
0:00:16.7]} 64. g7 {[%clk 0:00:18.2]} 64... Kd7 {[%clk 0:00:17.3]} 65. Kg6
{[%clk 0:00:18.5]} 65... Ke7 {[%clk 0:00:17.9]} 66. Kh6 {[%clk 0:00:18.3]} 66...
Kf6 {[%clk 0:00:17.7]} 67. Kh5 {[%clk 0:00:19.2]} 67... Qxg7 {[%clk 0:00:17.8]}
68. Kh4 {[%clk 0:00:20.1]} 68... Qg2 {[%clk 0:00:18.1]} 69. Kh5 {[%clk
0:00:14.8]} 69... Qg3 {[%clk 0:00:19]} 70. Kh6 {[%clk 0:00:14.2]} 70... Qh4#
{[%clk 0:00:19.4]} 0-1

[Event "Late-Titled-Tuesday-Blitz-September-26-2023"]
[Site "Chess.com"]
[Date "2023.09.26"]
[Round "9"]
[White "Garmendiarov"]
[Black "Eloist"]
[Result "1-0"]
[WhiteElo "2313"]
[BlackElo "2453"]
[TimeControl "180+1"]
[EndTime "15:42:01 PDT"]
[Termination "Garmendiarov won by resignation"]

1. e4 {[%clk 0:03:00.9]} 1... e6 {[%clk 0:02:59.7]} 2. d4 {[%clk 0:03:00.8]}
2... d5 {[%clk 0:02:59.8]} 3. Nc3 {[%clk 0:03:01.6]} 3... Nf6 {[%clk 0:02:59.9]}
4. e5 {[%clk 0:03:01.8]} 4... Nfd7 {[%clk 0:03:00.1]} 5. f4 {[%clk 0:03:02.6]}
5... c5 {[%clk 0:03:00.4]} 6. Nf3 {[%clk 0:03:03.4]} 6... Nc6 {[%clk 0:03:00.7]}
7. Be3 {[%clk 0:03:04.1]} 7... a6 {[%clk 0:03:01.1]} 8. a3 {[%clk 0:03:03.7]}
8... b5 {[%clk 0:03:01.1]} 9. dxc5 {[%clk 0:02:59.2]} 9... Bxc5 {[%clk
0:02:58.8]} 10. Bxc5 {[%clk 0:02:59.3]} 10... Nxc5 {[%clk 0:02:58.7]} 11. b4
{[%clk 0:03:00.1]} 11... Nd7 {[%clk 0:02:57.4]} 12. Bd3 {[%clk 0:03:00.7]} 12...
O-O {[%clk 0:02:47.5]} 13. Bxh7+ {[%clk 0:02:41.8]} 13... Kxh7 {[%clk
0:02:46.4]} 14. Ng5+ {[%clk 0:02:42.5]} 14... Kh6 {[%clk 0:02:14.6]} 15. Qg4
{[%clk 0:02:26.8]} 15... Ndxe5 {[%clk 0:02:11.3]} 16. Qh4+ {[%clk 0:02:05.6]}
16... Kg6 {[%clk 0:02:10.4]} 17. Qh7+ {[%clk 0:02:04.8]} 17... Kf6 {[%clk
0:02:10.3]} 18. fxe5+ {[%clk 0:02:04]} 18... Nxe5 {[%clk 0:01:54.2]} 19. O-O+
{[%clk 0:01:10.5]} 19... Ke7 {[%clk 0:01:52.7]} 20. Rae1 {[%clk 0:00:50.8]}
20... Kd6 {[%clk 0:01:36.7]} 21. Qxg7 {[%clk 0:00:40.1]} 21... f6 {[%clk
0:01:21.8]} 22. Nce4+ {[%clk 0:00:15.3]} 22... dxe4 {[%clk 0:01:12.6]} 23. Nxe4+
{[%clk 0:00:14.4]} 23... Kc6 {[%clk 0:01:10.2]} 24. Rd1 {[%clk 0:00:15.1]} 24...
Qb6+ {[%clk 0:00:19]} 25. Kh1 {[%clk 0:00:15.3]} 25... Nd7 {[%clk 0:00:11.8]}
26. Rd6+ {[%clk 0:00:14]} 26... Kc7 {[%clk 0:00:11.9]} 27. Rxb6 {[%clk
0:00:13.6]} 27... Kxb6 {[%clk 0:00:12.2]} 28. Nxf6 {[%clk 0:00:12.3]} 28... Rxf6
{[%clk 0:00:11.6]} 29. Rxf6 {[%clk 0:00:11.9]} 29... Nxf6 {[%clk 0:00:11.6]} 30.
Qxf6 {[%clk 0:00:12.8]} 30... Bd7 {[%clk 0:00:11.5]} 31. Qf2+ {[%clk 0:00:12.3]}
31... Kb7 {[%clk 0:00:10.9]} 32. Qf3+ {[%clk 0:00:12.2]} 32... Bc6 {[%clk
0:00:10.7]} 33. Qf7+ {[%clk 0:00:12.5]} 33... Kb6 {[%clk 0:00:10.4]} 34. h4
{[%clk 0:00:08.6]} 34... e5 {[%clk 0:00:09.8]} 35. Qf2+ {[%clk 0:00:07.9]} 35...
Kb7 {[%clk 0:00:09.6]} 36. Qc5 {[%clk 0:00:07.4]} 36... Re8 {[%clk 0:00:09]} 37.
Qe3 {[%clk 0:00:06.9]} 37... e4 {[%clk 0:00:09.2]} 38. Kh2 {[%clk 0:00:07.6]}
38... Re7 {[%clk 0:00:07.2]} 39. g4 {[%clk 0:00:07.9]} 39... Rf7 {[%clk
0:00:06.8]} 40. Qg5 {[%clk 0:00:05.9]} 40... Rf2+ {[%clk 0:00:06.6]} 41. Kg3
{[%clk 0:00:06.1]} 41... Rf3+ {[%clk 0:00:06.8]} 42. Kh2 {[%clk 0:00:06.7]}
42... e3 {[%clk 0:00:06.9]} 43. Qe7+ {[%clk 0:00:06.5]} 43... Kb6 {[%clk
0:00:06.3]} 44. g5 {[%clk 0:00:07.1]} 44... Rf2+ {[%clk 0:00:05.3]} 45. Kg3
{[%clk 0:00:07.7]} 45... Rf3+ {[%clk 0:00:04.5]} 46. Kh2 {[%clk 0:00:07.6]}
46... Rf2+ {[%clk 0:00:04.1]} 47. Kg3 {[%clk 0:00:07.6]} 47... Rf3+ {[%clk
0:00:04.6]} 48. Kg4 {[%clk 0:00:08.2]} 48... e2 {[%clk 0:00:04.5]} 49. Qxe2
{[%clk 0:00:07.9]} 49... Rc3 {[%clk 0:00:03.5]} 50. Qf2+ {[%clk 0:00:08]} 50...
Kb7 {[%clk 0:00:03.4]} 51. Kh5 {[%clk 0:00:08.2]} 51... Be4 {[%clk 0:00:03.3]}
52. Kh6 {[%clk 0:00:08.1]} 52... Rxc2 {[%clk 0:00:03.2]} 53. Qf7+ {[%clk
0:00:07.7]} 53... Rc7 {[%clk 0:00:02.5]} 54. Qf6 {[%clk 0:00:06.1]} 54... Rc6
{[%clk 0:00:03.4]} 55. Kg7 {[%clk 0:00:05.3]} 55... Rxf6 {[%clk 0:00:03.1]} 56.
gxf6 {[%clk 0:00:06.2]} 56... Bd5 {[%clk 0:00:02.9]} 57. f7 {[%clk 0:00:06.8]}
57... Bxf7 {[%clk 0:00:02.8]} 58. Kxf7 {[%clk 0:00:07.7]} 58... Kc6 {[%clk
0:00:03.2]} 59. h5 {[%clk 0:00:08.3]} 59... Kd5 {[%clk 0:00:03.5]} 60. h6 {[%clk
0:00:09]} 60... Kc4 {[%clk 0:00:04.1]} 61. h7 {[%clk 0:00:09.9]} 61... Kb3
{[%clk 0:00:04.6]} 62. h8=Q {[%clk 0:00:10.6]} 62... Kxa3 {[%clk 0:00:05.1]} 63.
Qh4 {[%clk 0:00:10]} 1-0